Cogmind - Beta 13 @@@ ROGUE MODE // 2024.04.06 @ 01:12:28 Player: SnowyImp Result: Destroyed by Y-45 Defender with Heavy Assault Rifle Performance ------------- Evolutions (2) 1000 Regions Visited (6) 1200 Robots Destroyed (17) 85 Value Destroyed (221) 221 Prototype IDs (1) 20 Alien Tech Used (0) 0 Bonus (20) 20 TOTAL SCORE: 2546 Bonus ------- Follower Combat Kills 137 Friendly Fire -117 Cogmind --------- Core Integrity 0/550 Matter 282/300 Energy 63/100 System Corruption 0% Temperature Cool (18) Movement Core (50) Location -8/Storage Parts ------- > --- POWER (1) -------- (None) > --- PROPULSION (4) --- (None) > --- UTILITY (4) ------ Advanced Visual Processing Unit Improved Signal Interpreter Hacking Suite > --- WEAPON (2) ------- (None) > --- INVENTORY (5) ---- Improved Ion Engine Advanced Weight Redist. System Makeshift Sensor Array Peak State ------------ > --- POWER ------------ Light Nuclear Core > --- PROPULSION ------- Flight Unit Cesium-ion Thruster Cesium-ion Thruster Cesium-ion Thruster > --- UTILITY ---------- Advanced Visual Processing Unit Experimental Sensor Array Improved Signal Interpreter Hacking Suite > --- WEAPON ----------- Light Assault Rifle Light Assault Rifle > --- INVENTORY -------- Improved Ion Engine Flight Unit Flight Unit Flight Unit Makeshift Sensor Array [Rating: 34] Favorites ----------- Power Light Nuclear Core Engine Ion Engine Power Core Light Nuclear Core Propulsion Flight Unit Leg Aluminum Leg Hover Unit Improved Hover Unit Flight Unit Flight Unit Utility Signal Interpreter Device Experimental Sensor Array Storage Small Storage Unit Processor Signal Interpreter Hackware Hacking Suite Weapon Light Assault Rifle Energy Gun Medium Laser Ballistic Gun Light Assault Rifle Build | -11 -10 -10 -10 -9 -8 -8 ------- Run | Yrd Mat Min Exi Min Mat Sto Slots Evolved 4 | . . . . . 4 . Power . | . . . . . . . Propulsion 2 | . . . . . 2 . Utility 2 | . . . . . 2 . Weapon . | . . . . . . . Parts Attached 44 | 6 7 7 1 2 11 10 Power 6 | 1 1 2 . . . 2 Engine 4 | 1 1 1 . . . 1 Core 2 | . . 1 . . . 1 Reactor . | . . . . . . . Propulsion 16 | 2 . 2 . 1 6 5 Treads . | . . . . . . . Leg 2 | 2 . . . . . . Wheel . | . . . . . . . Hover 2 | . . . . . . 2 Flight 12 | . . 2 . 1 6 3 Utility 11 | 1 1 2 1 1 5 . Device 6 | . . 2 1 1 2 . Storage 1 | 1 . . . . . . Processor 3 | . 1 . . . 2 . Hackware 1 | . . . . . 1 . Protection . | . . . . . . . Artifact . | . . . . . . . Weapon 11 | 2 5 1 . . . 3 Energy Gun 3 | 1 2 . . . . . Energy Cannon . | . . . . . . . Ballistic Gun 8 | 1 3 1 . . . 3 Ballistic Cannon . | . . . . . . . Launcher . | . . . . . . . Special Weapon . | . . . . . . . Impact Weapon . | . . . . . . . Slashing Weapon . | . . . . . . . Piercing Weapon . | . . . . . . . Special Melee Weapon . | . . . . . . . Unidentified Prototypes 1 | . . . . . 1 . Parts Lost 18 | . . 3 . 1 1 13 Power 2 | . . 1 . . . 1 Propulsion 11 | . . 1 . 1 1 8 Utility 2 | . . 1 . . . 1 Weapon 3 | . . . . . . 3 Highest Loss Streak 13 | . . 2 . 1 1 13 To Critical Strikes . | . . . . . . . Average Slot Usage (%) 89 | . 85 95 89 85 91 88 Engine 6 | . 14 8 . . . . Core 6 | . . 5 14 14 9 7 Leg 11 | . 28 6 . . . . Flight 17 | . . 20 28 28 36 27 Device 3 | . . 5 3 . 9 7 Storage 6 | . 14 5 . . . . Processor 9 | . 1 14 14 14 12 18 Hackware 1 | . . . . . 6 9 Energy Gun 5 | . 16 . . . . . Ballistic Gun 19 | . 9 28 28 28 18 16 Naked Turns . | . . . . . . . Heaviest Build 14 | 14 14 10 8 7 8 10 Greatest Support 20 | 20 20 10 8 8 19 19 Greatest Overweight (x) 1 | . . . . . . 1 Average Overweight (x) . | . . . . . . . Largest Inventory Capacity 8 | 8 8 8 5 5 5 5 Average Capacity 6 | 7 8 6 5 5 5 5 Most Carried 8 | 2 8 8 5 5 5 5 Average Carried 4 | 1 3 6 5 4 4 4 Final Capacity 8 | 8 8 5 5 5 5 5 Final Carried 8 | 2 8 5 5 5 5 3 Class Distribution -------------------- 47% | Scavenger-Mutant 39% | Mutant 10% | Scavenger-Scout Dominant Class ---------------- Mutant | -10/Materials Scavenger-Mutant | -10/Mines Scavenger-Mutant | -10/Exiles Scavenger-Mutant | -9/Mines Scavenger-Scout | -8/Materials Scavenger-Scout | -8/Storage Resources | -11 -10 -10 -10 -9 -8 -8 ----------- Run | Yrd Mat Min Exi Min Mat Sto Matter Collected 618 | 191 116 104 . 41 . 166 Remotely . | . . . . . . . Salvage Created 390 | . 155 152 . 13 . 70 Parts 39 | . 20 13 . 1 . 5 Haulers Intercepted . | . . . . . . . Recyclers Shooed . | . . . . . . . Parts Field Recycled . | . . . . . . . Retrieved Matter . | . . . . . . . Parts Self-Destructed . | . . . . . . . Prevented . | . . . . . . . Kills | -11 -10 -10 -10 -9 -8 -8 ------- Run | Yrd Mat Min Exi Min Mat Sto Combat Hostiles Destroyed 16 | . 9 4 . 1 . 2 Guns 16 | . 9 4 . 1 . 2 Classes Destroyed 2 | . 1 1 . . . . Swarmer 14 | . 9 3 . 1 . 1 Grunt 2 | . . 1 . . . 1 Thug 1 | . . 1 . . . . Best Kill Streak 9 | . 9 3 . 1 . 1 Combat Bots Only 9 | . 9 3 . 1 . 1 Max Kills in Single Turn 2 | . 2 2 . 1 . 1 Gunslinging 1 | . 1 . . . . . Exploded . | . . . . . . . Melee . | . . . . . . . Uniques/NPCs Destroyed . | . . . . . . . Combat | -11 -10 -10 -10 -9 -8 -8 -------- Run | Yrd Mat Min Exi Min Mat Sto Hostile Shots Fired 227 | . 43 48 . 1 6 129 Missed 66 | . 9 11 . 1 3 42 Damage Taken 2088 | . 265 398 . 89 52 1284 Core 748 | . 47 88 . 60 . 553 Absorbed by Shields . | . . . . . . . Core Remaining (%) 61 | 100 . . . 22 . . Volleys Fired 54 | . 19 15 . 3 . 17 Largest 2 | . 2 2 . 2 . 2 Hottest 100 | . 100 40 . 40 . 45 Shots Fired 100 | . 34 30 . 6 . 30 Gun 100 | . 34 30 . 6 . 30 Cannon . | . . . . . . . Launcher . | . . . . . . . Special . | . . . . . . . Kinetic 68 | . 2 30 . 6 . 30 Thermal 32 | . 32 . . . . . Explosive . | . . . . . . . Electromagnetic . | . . . . . . . Robot Hit Streak 6 | . 3 5 . 1 . 6 Robot Miss Streak 6 | . 3 6 . 2 . 4 Penetration Max . | . . . . . . . Secondary Targets 2 | . 2 . . . . . Max Gunslinging Chain 1 | . 1 . . . . . Shots Hit Robots 47 | . 17 15 . 2 . 13 Core Hits 23 | . 10 6 . 1 . 6 Critical Kills 1 | . . 1 . . . . Critical Parts Destroyed 1 | . . 1 . . . . Critical Strikes 2 | . . 2 . . . . Destroy 2 | . . 2 . . . . Melee Attacks . | . . . . . . . Impact . | . . . . . . . Slashing . | . . . . . . . Piercing . | . . . . . . . Sneak Attacks . | . . . . . . . Combat Hostiles . | . . . . . . . Follow-up Attacks . | . . . . . . . Damage Inflicted 551 | . 219 142 . 26 . 164 Guns 529 | . 215 140 . 26 . 148 Cannons . | . . . . . . . Explosions . | . . . . . . . Melee . | . . . . . . . Ramming 22 | . 4 2 . . . 16 Kinetic 329 | . 15 140 . 26 . 148 Thermal 200 | . 200 . . . . . Explosive . | . . . . . . . Electromagnetic . | . . . . . . . Impact . | . . . . . . . Slashing . | . . . . . . . Piercing . | . . . . . . . Highest Corruption . | . . . . . . . Average Corruption . | . . . . . . . Corruption Purged . | . . . . . . . Corruption Blocked . | . . . . . . . Overload Shots . | . . . . . . . Overflow Damage . | . . . . . . . Projectiles . | . . . . . . . Explosions . | . . . . . . . Melee . | . . . . . . . Knockbacks . | . . . . . . . Impact . | . . . . . . . Kinetic . | . . . . . . . Secondary . | . . . . . . . Self-Inflicted Damage 6 | . . . . . . 6 Shots . | . . . . . . . Rammed 5 | . . . . . . 5 Targets Rammed 7 | . 1 1 . . . 5 Kicked 2 | . 1 1 . . . . Crushed . | . . . . . . . Highest Temperature 560 | . 560 22 . 12 20 36 Average Temperature 188 | . 296 8 . 7 12 12 Received Heat Transfer 735 | . . 123 . . 45 567 Effects 7 | . 7 . . . . . Shutdowns 3 | . 3 . . . . . Short Circuit 1 | . 1 . . . . . Damage (minor) 2 | . 2 . . . . . Damage (major) 1 | . 1 . . . . . Siege Activations . | . . . . . . . Robots Corrupted . | . . . . . . . Combat Hostiles . | . . . . . . . Parts Fried . | . . . . . . . Impact Corruptions . | . . . . . . . Robots Melted . | . . . . . . . Combat Hostiles . | . . . . . . . Parts Melted 1 | . 1 . . . . . Heat Transferred 592 | . 592 . . . . . Parts Sabotaged . | . . . . . . . Parts Stolen . | . . . . . . . Parts Stripped . | . . . . . . . Power Chain Reactions . | . . . . . . . Alert | -11 -10 -10 -10 -9 -8 -8 ------- Run | Yrd Mat Min Exi Min Mat Sto Peak Influence 253 | . 225 195 . 73 117 253 Initial 55 | . . 9 . . 27 55 Average 74 | . 43 120 . 36 61 162 Maximum Alert Level 1 | . 1 . . . . 1 Low Security (%) 93 | 100 91 100 . 100 100 69 Level 1 6 | . 8 . . . . 30 Level 2 . | . . . . . . . Level 3 . | . . . . . . . Level 4 . | . . . . . . . Level 5 . | . . . . . . . High Security . | . . . . . . . Max Security . | . . . . . . . Squads Dispatched 5 | . 1 . . . . 4 Investigation 2 | . 1 . . . . 1 Extermination . | . . . . . . . Reinforcement 1 | . . . . . . 1 Assault 2 | . . . . . . 2 Garrison . | . . . . . . . Intercept . | . . . . . . . Searches Triggered . | . . . . . . . Construction Impeded . | . . . . . . . Haulers Reinforced . | . . . . . . . Active Scanning Responses . | . . . . . . . Cargo Convoy Interrupts . | . . . . . . . Stealth | -11 -10 -10 -10 -9 -8 -8 --------- Run | Yrd Mat Min Exi Min Mat Sto Distress Signals 2 | . . . . . 1 1 Communications Jammed . | . . . . . . . Distress Signals . | . . . . . . . Times Spotted 80 | . 11 14 . 4 11 40 Peak Tracking Total 29 | . 9 4 . 3 7 29 Tactical Retreats 8 | . . 2 . 1 2 3 Traps | -11 -10 -10 -10 -9 -8 -8 ------- Run | Yrd Mat Min Exi Min Mat Sto Traps Triggered 2 | . 1 . . . . 1 Indirectly . | . . . . . . . Trap Hack Attempts . | . . . . . . . Triggered . | . . . . . . . Disarmed . | . . . . . . . Reprogrammed . | . . . . . . . Reused . | . . . . . . . Traps Extracted . | . . . . . . . Installed . | . . . . . . . Triggered . | . . . . . . . Machines | -11 -10 -10 -10 -9 -8 -8 ---------- Run | Yrd Mat Min Exi Min Mat Sto Machines Disabled . | . . . . . . . Max in Single Turn . | . . . . . . . Garrison Access 1 | . . . . . . 1 Machines Repaired . | . . . . . . . Machines Dismantled . | . . . . . . . Machines Sabotaged . | . . . . . . . Overloaded Fab Kills . | . . . . . . . Hacking | -11 -10 -10 -10 -9 -8 -8 --------- Run | Yrd Mat Min Exi Min Mat Sto Machines Accessed 10 | . 3 . 1 . 4 2 Terminals 8 | . 3 . . . 4 1 Fabricators . | . . . . . . . Repair Stations . | . . . . . . . Recycling Units . | . . . . . . . Scanalyzers . | . . . . . . . Garrison Access 1 | . . . . . . 1 Total Hacks 52 | . 9 . 23 . 15 5 Successful 33 | . 3 . 23 . 5 2 Failed 19 | . 6 . . . 10 3 Catastrophic 7 | . 4 . . . 3 . Database Lockouts . | . . . . . . . Manual 24 | . 8 . . . 14 2 Terminals 26 | . 9 . . . 15 2 Fabricators . | . . . . . . . Repair Stations . | . . . . . . . Recycling Units . | . . . . . . . Scanalyzers . | . . . . . . . Garrison Access 3 | . . . . . . 3 Terminal Hacks 31 | . 3 . 23 . 5 . Record 23 | . . . 23 . . . Part Schematic 2 | . . . . . 2 . Branch Access Points 1 | . . . . . 1 . Recall Investigation 2 | . 1 . . . 1 . Registered Components 3 | . 2 . . . 1 . Fabricator Hacks . | . . . . . . . Repair Station Hacks . | . . . . . . . Recycling Unit Hacks . | . . . . . . . Scanalyzer . | . . . . . . . Garrison Access Hacks 2 | . . . . . . 2 Seal Access 1 | . . . . . . 1 Coupler Status 1 | . . . . . . 1 Unauthorized Hacks . | . . . . . . . Terminals . | . . . . . . . Fabricators . | . . . . . . . Repair Stations . | . . . . . . . Recycling Units . | . . . . . . . Scanalyzers . | . . . . . . . Garrison Access . | . . . . . . . Data Cores Recovered . | . . . . . . . Used . | . . . . . . . Hacking Detections 9 | . 3 . . . 4 2 Full Trace Events 2 | . . . . . 1 1 Feedback Events . | . . . . . . . Feedback Blocked . | . . . . . . . Robot Schematics Acquired . | . . . . . . . Robots Built . | . . . . . . . Authchips . | . . . . . . . Time . | . . . . . . . Total Robot Build Rating . | . . . . . . . Part Schematics Acquired 2 | . . . . . 2 . Parts Built . | . . . . . . . Authchips . | . . . . . . . Time . | . . . . . . . Total Part Build Rating . | . . . . . . . Parts Repaired . | . . . . . . . Time . | . . . . . . . Parts Recycled . | . . . . . . . Recycled Matter . | . . . . . . . Retrieved Matter . | . . . . . . . Retrieved Components . | . . . . . . . Parts Scanalyzed . | . . . . . . . Part Schematics Acquired . | . . . . . . . Parts Damaged . | . . . . . . . Bothacking | -11 -10 -10 -10 -9 -8 -8 ------------ Run | Yrd Mat Min Exi Min Mat Sto Used RIF Installer . | . . . . . . . Robots Hacked . | . . . . . . . Non-combat . | . . . . . . . Combat . | . . . . . . . Robot Hacks Applied . | . . . . . . . Relay Couplers Released . | . . . . . . . Fabnet Peak Effective % . | . . . . . . . Robots Rewired 3 | . . . 3 . . . Allies Hacked . | . . . . . . . Hacks Repelled . | . . . . . . . Allies | -11 -10 -10 -10 -9 -8 -8 -------- Run | Yrd Mat Min Exi Min Mat Sto Total Allies 10 | . . 5 3 . . 2 Largest Group 3 | . . 3 3 3 3 2 Highest-Rated Group 62 | . . 45 37 37 37 62 Highest-Rated Ally 31 | . . 31 21 21 21 31 Total Orders . | . . . . . . . Ally Attacks 31 | . . 6 . 7 7 11 Total Damage 478 | . . 128 . 76 58 216 Kills 5 | . . 3 . 1 . 1 Allies Corrupted . | . . . . . . . Allies Melted . | . . . . . . . Intel | -11 -10 -10 -10 -9 -8 -8 ------- Run | Yrd Mat Min Exi Min Mat Sto Robot Analysis Total . | . . . . . . . Derelict Logs Recovered 1 | . . 1 . . . . Drone Launches . | . . . . . . . Drone Recoveries . | . . . . . . . Exploration | -11 -10 -10 -10 -9 -8 -8 ------------- Run | Yrd Mat Min Exi Min Mat Sto Turns Passed 1644 | 68 537 362 260 156 120 141 Spaces Moved 2254 | 52 380 560 411 273 356 222 Core 14 | 6 . . . . . 8 Treads . | . . . . . . . Legs 524 | 46 380 98 . . . . Wheels . | . . . . . . . Hover 4 | . . . . . . 4 Flight 1712 | . . 462 411 273 356 210 Fastest Speed 27 | 50 120 37 37 37 27 27 Average Speed 54 | 111 120 51 37 37 28 29 Slowest Speed 120 | 120 120 120 37 37 31 100 Overloaded Moves . | . . . . . . . Propulsion Burnouts . | . . . . . . . Robots Hopped 49 | . . 3 . 15 9 22 Cave-ins Triggered . | . . . . . . . Exploration Rate (%) 51 | 4 58 83 79 52 34 53 Regions Visited 6 Branch Regions 4 Pre-discovered Areas 2 | . . 1 1 . . . Known Exits Taken 5 | . 1 1 1 1 1 . Unknown Exits Taken 1 | 1 . . . . . . Scrap Searched 2 | . . 1 . 1 . . Spaces Dug . | . . . . . . . Terrain Destroyed . | . . . . . . . Melee . | . . . . . . . Projectile . | . . . . . . . AOE . | . . . . . . . Terrain Rammed . | . . . . . . . Walls Destroyed . | . . . . . . . Machines Disabled . | . . . . . . . Actions | -11 -10 -10 -10 -9 -8 -8 --------- Run | Yrd Mat Min Exi Min Mat Sto Total 2537 | 59 428 607 519 308 364 252 Wait 162 | . 6 18 81 44 . 13 Move 2156 | 51 379 553 410 244 337 182 Hop 43 | . . 3 . 13 9 18 Pick Up 20 | 2 9 3 1 1 3 1 Fast Attach 23 | 6 3 4 1 . 3 6 Attach 14 | . 2 1 . 2 5 4 Detach 5 | . 1 . . 1 1 2 Swap 7 | . 2 2 . . 3 . Drop 23 | . 6 7 3 . 3 4 Fire 54 | . 19 15 . 3 . 17 Melee . | . . . . . . . Ram 5 | . . . . . . 5 Kick 2 | . 1 1 . . . . Crush . | . . . . . . . Escape Stasis . | . . . . . . . Rewire 23 | . . . 23 . . . Trap . | . . . . . . . Miscellaneous . | . . . . . . . Route ------- -11/Scrapyard -10/Materials (discovered 3 exits: *Mat x2 / *Min) -10/Mines (discovered 3 exits: *Mat x2 / *Exi) -10/Exiles (discovered 2 exits: *Min x2) -9/Mines -8/Materials -8/Storage History --------- Turn | Location | Event 3 | -11/Scrapyard | Discovered new exit (range 15) 69 | -11/Scrapyard | Entered Materials 146 | -10/Materials | Discovered new exit (range 4) 308 | -10/Materials | Build established: Mutant 356 | -10/Materials | Discovered new exit (range 15) 444 | -10/Materials | Destroyed 9 combat bots 506 | -10/Materials | Discovered new exit (range 14) 575 | -10/Materials | Identified exit to Mines 606 | -10/Materials | Entered Mines 711 | -10/Mines | Found a damaged Exp. Sensor Array with a note attached 714 | -10/Mines | Found Prototype Device 797 | -10/Mines | Received a Rocket Launcher from a helpful Derelict 811 | -10/Mines | Core integrity fell below 50% 875 | -10/Mines | Learned location of Zion (-7) 907 | -10/Mines | Discovered new exit (range 8) 910 | -10/Mines | Identified exit to Materials 936 | -10/Mines | Build established: Scavenger-Mutant 958 | -10/Mines | Assisted by bots powering up and referring to "LRC-V3" 959 | -10/Mines | Discovered exit to Materials (range 8) 967 | -10/Mines | Deemed a non-threat by the Exiles lab entrance 967 | -10/Mines | Discovered new exit (range 5) 968 | -10/Mines | Identified exit to Exiles 968 | -10/Mines | Entered Exiles 968 | -10/Exiles | Found Exiles lab destroyed 1097 | -10/Exiles | Discovered new exit (range 14) 1101 | -10/Exiles | Identified exit to Mines 1143 | -10/Exiles | Discovered exit to Mines (range 14) 1228 | -10/Exiles | Entered Mines 1228 | -9/Mines | Accompanied by 3 allies 1229 | -9/Mines | Assembled infested the area 1234 | -9/Mines | Assisted by a Guerilla fighting off Assembled 1344 | -9/Mines | A weapon hastily lodged in a ceiling crevice suddenly fell to the ground 1352 | -9/Mines | Discovered new exit (range 15) 1357 | -9/Mines | Identified exit to Materials 1384 | -9/Mines | Entered Materials 1384 | -8/Materials | Accompanied by 3 allies 1384 | -8/Materials | Evolved 4 slots: Propulsion x2, Utility x2 1387 | -8/Materials | Identified Exp. Sensor Array 1415 | -8/Materials | Discovered new exit (range 12) 1451 | -8/Materials | Identified exit to Storage 1504 | -8/Materials | Entered Storage 1524 | -8/Storage | Met a pair of Derelict thieves 1629 | -8/Storage | Core integrity fell below 50% 1636 | -8/Storage | Core integrity fell below 20% 1645 | -8/Storage | Destroyed by Y-45 Defender with Heavy Assault Rifle Last Messages --------------- 01628_ Destabilizing: Core damaged (-5). 01629_ Penetrated by Slug. 01630_ K-01 Serf collects debris. 01631_ Critical hit (Burn: +37). 01631_ Acquired Autogun. 01634_ K-01 Serf collects debris. 01635_ Acquired Imp. Hover Unit. 01640_ Slammed into Y-45 Defender. 01640_ Autogun broken. 01640_ Destabilizing: Short circuit. 01640_ K-01 Serf collects debris. 01641_ G-47 Trooper suffers critical hit (Burn). 01641_ Slammed into Y-45 Defender. 01641_ Slug penetrates Y-45 Defender. 01641_ Imp. Hover Unit destroyed. 01642_ Slammed into G-47 Trooper. 01643_ K-01 Serf collects debris. 01643_ Imp. Hover Unit destroyed. 01645_ Dropped Autogun. 01645_ Broken Autogun destroyed. Map ----- +----------------------------------------------------+ | ?????????????????????????????????????????????? | | ?????????????????????????????????????????????? | | ?????????????????????????????????????????????? | | ?????????????????????????????????????????????? | | ?????????????????????????????????????????????? | | ?????????????????????????????????????????????? | | ?????????????????????????????????????????????? | | ?????????????????????????????????????????????? | | ?????????????????????????????????????????????? | | ?????????????????????????????????????????????? | | ?????????????????????????????????????????????? | | ?????????????????????????????????????????????? | | ?????????????????########????????????????????? | | ????????##???????# #????????????????????? | | ???????? ???????#""" %###??????????????????? | | ????????# ???????#""" [*+ #??????????????????? | | ????????# #####??#""" #g#????##????????????? | | ????????# #"""#??# *%# ##### ##???????????? | | ????????# #"Y"#??# "/g# #???????????? | | ????????# #" "###########Y# "#???????????? | | ????????# u k%# T#???????????? | | ????????# ih YgY "#???????????? | | #######?# ggg gg# #???????????? | | #?# Y Yg # #???????????? | | #?# Y g [########???????????? | | #?# ######### @#######????????????? | | " """ #?# #???????# #????????????? | | " """ #?# #???????# +??????? | | " """ #?# #???????#+#### ### #??????? | | #?# #??????? ??? ##????????????? | | ???# ####??????? ""??? #?????????????? | | ##/###### #????????? """??? ; ????????????? | | #????????? """??? # ???????????? | | ####????????# ?? # ??????????? | | #???????????# *??? +?] ?????????? | | #####/#####????????# ######??###?? [ ????????? | | ?# #????????##?????????????? !???????? | | ?# """"" #?????????????????????????###??????? | | ?#?????" #??????????????????????????????????? | | ???????" #??????????????????????????????????? | | ???????"" #??????????????????????????????????? | | ????????"=#??????????????????????????????????? | | ?# """"" #??????????????????????????????????? | | ?# !=#??????????????????????????????????? | | ?# #??????????????????????????????????? | | ?##########??????????????????????????????????? | | ?????????????????????????????????????????????? | | ?????????????????????????????????????????????? | | ?????????????????????????????????????????????? | | ?????????????????????????????????????????????? | +----------------------------------------------------+ Best States ------------- Heat Dissipation 39 Energy Generation 14 Energy Capacity 250 Matter Stores 300 Matter Capacity 300 Sight Range 20 Robot Scan Range 20 Terrain Scan Density 10 Evasion (%) 64 Offensive Hacking 10 Item Schematics ----------------- Imp. Signal Interpreter | -8/Materials | Hacked Hacking Suite | -8/Materials | Hacked Robot Schematics ------------------ None Fabricated ------------ Nothing Alien Tech Used ----------------- None Achievements -------------- Backstab Hunted Challenges ------------ None Game ------ Seed LatentTacticalMatter Manual? 0 Play Time 00:34:38 Cumulative 16.2 hours Start 2024.04.06 @ 00:38:30 End 2024.04.06 @ 01:12:28 Sessions 1 Manual Loads 0 Difficulty Rogue Special Mode None Game No. 21 Rogue 21 Adventurer 0 Explorer 0 Win Type - Total 0 Types 0/0/0/0/0/0/0/0/0 Lore% 9 Gallery% 23 Achievement% 20 Wizard Run 0 Options --------- Layout 1 ASCII 0 Keyboard 0 Movement Numpad Keybinds 0 Fullscreen 1 Font 24/Crisp Map View 50x35 Zoom Use 0% Tactical HUD 1 Map Filters NONE Filters NONE Steam 1 RUN: ba6b81ea-586a-44ce-8d9c-26946212a19a